fUSD/lending_fUSD_20250609
["ID","MTS","AMOUNT","RATE_DAILY","PERIOD"]
[365165198,1749507049324,-973.4,0.00019342,2]
[365165199,1749507049334,-490.0,0.00019342,2]
[365165200,1749507049344,-490.0,0.00019342,2]
[365165201,1749507049354,-490.0,0.00019342,2]
[365165202,1749507049363,-490.0,0.00019342,2]
[365165203,1749507049373,-490.0,0.00019342,2]
[365165204,1749507049383,-490.0,0.00019342,2]
[365165205,1749507049393,-490.0,0.00019342,2]
[365165206,1749507049402,-490.0,0.00019342,2]
[365165207,1749507049412,-490.0,0.00019342,2]
[365165208,1749507049422,-508.53,0.00019342,2]
[365165209,1749507049432,-490.0,0.00019342,2]
[365165210,1749507049442,-499.64,0.00019342,2]
[365165211,1749507049452,-856.32,0.00019342,2]
[365165212,1749507049462,-532.35,0.00019342,2]
[365165213,1749507049472,-490.0,0.00019342,2]
[365165214,1749507049482,-1004.19,0.00019342,2]
[365165215,1749507049491,-490.0,0.00019342,2]
[365165216,1749507049501,-490.0,0.00019342,2]
[365165217,1749507049511,-490.0,0.00019342,2]
[365165218,1749507049520,-1058.91,0.00019342,2]
[365165219,1749507049530,-490.0,0.00019342,2]
[365165220,1749507049540,-535.1,0.00019342,2]
[365165221,1749507049550,-634.22,0.00019342,2]
[365165222,1749507049560,-490.0,0.00019342,2]
[365165223,1749507049570,-490.0,0.00019342,2]
[365165224,1749507049581,-490.0,0.00019342,2]
[365165225,1749507049592,-490.0,0.00019342,2]
[365165226,1749507049601,-490.0,0.00019342,2]
[365165227,1749507049611,-492.34,0.00019342,2]
[365165228,1749507049622,-490.0,0.00019342,2]
[365165229,1749507049631,-490.0,0.00019342,2]
[365165230,1749507049640,-513.15,0.00019342,2]
[365165231,1749507049650,-490.0,0.00019342,2]
[365165232,1749507049660,-565.17,0.00019342,2]
[365165233,1749507049670,-490.0,0.00019342,2]
[365165234,1749507049679,-490.0,0.00019342,2]
[365165235,1749507049689,-490.0,0.00019342,2]
[365165236,1749507049699,-490.0,0.00019342,2]
[365165237,1749507049709,-1007.95,0.00019342,2]
[365165238,1749507049718,-490.0,0.00019342,2]
[365165239,1749507049728,-620.03,0.00019342,2]
[365165240,1749507049739,-490.0,0.00019342,2]
[365165241,1749507049749,-1164.18,0.00019342,2]
[365165242,1749507049759,-490.0,0.00019342,2]
[365165243,1749507049768,-634.76,0.00019342,2]
[365165244,1749507049778,-490.0,0.00019342,2]
[365165245,1749507049788,-490.0,0.00019342,2]
[365165246,1749507049798,-490.0,0.00019342,2]
[365165247,1749507049807,-490.0,0.00019342,2]
[365165248,1749507049816,-490.0,0.00019342,2]
[365165249,1749507049826,-542.72,0.00019342,2]
[365165250,1749507049836,-490.0,0.00019342,2]
[365165251,1749507049846,-551.16,0.00019342,2]
[365165252,1749507049855,-926.98,0.00019342,2]
[365165253,1749507049864,-490.0,0.00019342,2]
[365165254,1749507049874,-490.0,0.00019342,2]
[365165255,1749507049883,-490.0,0.00019342,2]
[365165256,1749507049892,-524.82,0.00019342,2]
[365165257,1749507049902,-490.0,0.00019342,2]
[365165258,1749507049911,-490.0,0.00019342,2]
[365165259,1749507049921,-1358.3,0.00019342,2]
[365165260,1749507049931,-582.72,0.00019342,2]
[365165261,1749507049940,-557.38147213,0.00019342,2]
[365165262,1749507049949,-490.0,0.00019342,2]
[365165263,1749507049959,-1000.91,0.00019342,2]
[365165264,1749507049968,-1005.84,0.00019342,2]
[365165265,1749507049977,-490.0,0.00019342,2]
[365165266,1749507049987,-490.0,0.00019342,2]
[365165267,1749507049996,-799.5,0.00019342,2]
[365165268,1749507050006,-625.68,0.00019342,2]
[365165269,1749507050015,-490.0,0.00019342,2]
[365165270,1749507050024,-490.0,0.00019342,2]
[365165271,1749507050034,-490.0,0.00019342,2]
[365165272,1749507050044,-490.0,0.00019342,2]
[365165273,1749507050053,-725.72,0.00019342,2]
[365165274,1749507050063,-490.0,0.00019342,2]
[365165275,1749507050072,-490.0,0.00019342,2]
[365165276,1749507050081,-831.35,0.00019342,2]
[365165277,1749507050091,-490.0,0.00019342,2]
[365165278,1749507050101,-490.0,0.00019342,2]
[365165279,1749507050111,-663.1,0.00019342,2]
[365165280,1749507050120,-490.0,0.00019342,2]
[365165281,1749507050130,-490.0,0.00019342,2]
[365165282,1749507050139,-17725.6,0.00019342,2]
[365165283,1749507050149,-735.23,0.00019342,2]
[365165284,1749507050158,-490.0,0.00019342,2]
[365165285,1749507050167,-490.0,0.00019342,2]
[365165286,1749507050177,-1098.27,0.00019342,2]
[365165287,1749507050186,-490.0,0.00019342,2]
[365165288,1749507050196,-490.0,0.00019342,2]
[365165289,1749507050206,-1889.3,0.00019342,2]
[365165290,1749507050215,-490.0,0.00019342,2]
[365165291,1749507050225,-893.16,0.00019342,2]
[365165292,1749507050235,-490.0,0.00019342,2]
[365165293,1749507050249,-1897.75,0.00019342,2]
[365165294,1749507050259,-1777.32,0.00019342,2]
[365165295,1749507050268,-941.76,0.00019342,2]
[365165296,1749507050277,-490.0,0.00019342,2]
[365165297,1749507050289,-458.63043133,0.00019342,2]
[365165298,1749507050298,-755.0,0.00019342,2]
[365165299,1749507050308,-772.99,0.00019342,2]
[365165300,1749507050318,-490.0,0.00019342,2]
[365165301,1749507050328,-737.76,0.00019342,2]
[365165302,1749507050340,-4416.68,0.00019342,2]
[365165303,1749507050350,-1137.59331137,0.00019342,2]
[365165304,1749507050360,-490.0,0.00019342,2]
[365165305,1749507050370,-522.07,0.00019342,2]
[365165306,1749507050380,-887.87,0.00019342,2]
[365165307,1749507050390,-490.0,0.00019342,2]
[365165308,1749507050399,-450.0,0.00019342,2]
[365165309,1749507050409,-490.0,0.00019342,2]
[365165310,1749507050419,-539.06,0.00019342,2]
[365165311,1749507050429,-490.0,0.00019342,2]
[365165312,1749507050439,-1071.93,0.00019342,2]
[365165313,1749507050450,-490.0,0.00019342,2]
[365165314,1749507050460,-2203.56,0.00019342,2]
[365165315,1749507050470,-895.5,0.00019342,2]
[365165316,1749507050480,-1853.88,0.00019342,2]
[365165317,1749507050489,-490.0,0.00019342,2]
[365165318,1749507050499,-603.49,0.00019342,2]
[365165319,1749507050509,-1096.19,0.00019342,2]
[365165320,1749507050519,-2948.66,0.00019342,2]
[365165321,1749507050529,-959.14,0.00019342,2]
[365165322,1749507050539,-737.54,0.00019342,2]
[365165323,1749507050549,-490.0,0.00019342,2]
[365165324,1749507050558,-511.01,0.00019342,2]
[365165325,1749507050568,-782.91,0.00019342,2]
[365165326,1749507050578,-2132.88,0.00019342,2]
[365165327,1749507050588,-1279.96,0.00019342,2]
[365165328,1749507050599,-1107.22,0.00019342,2]
[365165329,1749507050609,-783.34,0.00019342,2]
[365165330,1749507050620,-1751.55,0.00019342,2]
[365165331,1749507050629,-1036.43,0.00019342,2]
[365165332,1749507050639,-1078.36,0.00019342,2]
[365165333,1749507050648,-490.0,0.00019342,2]
[365165334,1749507050658,-572.71,0.00019342,2]
[365165335,1749507050668,-760.12,0.00019342,2]
[365165336,1749507050678,-860.09,0.00019342,2]
[365165337,1749507050687,-490.0,0.00019342,2]
[365165338,1749507050697,-600.61,0.00019342,2]
[365165339,1749507050706,-593.68,0.00019342,2]
[365165340,1749507050715,-1467.53,0.00019342,2]
[365165341,1749507050725,-490.0,0.00019342,2]
[365165342,1749507050735,-490.0,0.00019342,2]
[365165343,1749507050745,-490.0,0.00019342,2]
[365165344,1749507050755,-490.0,0.00019342,2]
[365165345,1749507050765,-490.0,0.00019342,2]
[365165346,1749507050774,-506.84,0.00019342,2]
[365165347,1749507050784,-1287.49,0.00019342,2]
[365165348,1749507050794,-490.0,0.00019342,2]
[365165349,1749507050803,-490.0,0.00019342,2]
[365165350,1749507050812,-519.38,0.00019342,2]
[365165351,1749507050822,-544.5,0.00019342,2]
[365165352,1749507050832,-811.36,0.00019342,2]
[365165353,1749507050843,-1631.08,0.00019342,2]
[365165354,1749507050852,-1373.97,0.00019342,2]
[365165355,1749507050862,-1186.56,0.00019342,2]
[365165356,1749507050872,-1060.77,0.00019342,2]
[365165357,1749507050882,-490.0,0.00019342,2]
[365165358,1749507050891,-893.86,0.00019342,2]
[365165359,1749507050901,-2331.05,0.00019342,2]
[365165360,1749507050911,-760.97,0.00019342,2]
[365165361,1749507050917,-1151.75,0.00019342,2]
[365165362,1749507050925,-696.71,0.00019342,2]
[365165363,1749507050931,-490.0,0.00019342,2]
[365165364,1749507050938,-1660.96,0.00019342,2]
[365165365,1749507050946,-910.84,0.00019342,2]
[365165366,1749507050953,-498.91,0.00019342,2]
[365165367,1749507050962,-826.27,0.00019342,2]
[365165368,1749507050972,-570.38,0.00019342,2]
[365165369,1749507050981,-545.6,0.00019342,2]
[365165370,1749507050991,-3056.8,0.00019342,2]
[365165371,1749507051000,-490.0,0.00019342,2]
[365165372,1749507051010,-717.36,0.00019342,2]
[365165373,1749507051019,-491.0,0.00019342,2]
[365165374,1749507051029,-721.08,0.00019342,2]
[365165375,1749507051038,-490.0,0.00019342,2]
[365165376,1749507051048,-541.14265765,0.00019342,2]
[365165377,1749507051057,-1034.39,0.00019342,2]
[365165378,1749507051067,-490.0,0.00019342,2]
[365165379,1749507051076,-490.0,0.00019342,2]
[365165380,1749507051085,-566.73,0.00019342,2]
[365165381,1749507051095,-490.0,0.00019342,2]
[365165382,1749507051105,-490.0,0.00019342,2]
[365165383,1749507051114,-490.0,0.00019342,2]
[365165384,1749507051124,-547.78,0.00019342,2]
[365165385,1749507051133,-490.0,0.00019342,2]
[365165386,1749507051142,-1318.97,0.00019342,2]
[365165387,1749507051151,-490.0,0.00019342,2]
[365165388,1749507051160,-490.0,0.00019342,2]
[365165389,1749507051169,-509.39,0.00019342,2]
[365165390,1749507051181,-819.28,0.00019342,2]
[365165391,1749507051190,-490.0,0.00019342,2]
[365165392,1749507051200,-490.0,0.00019342,2]
[365165393,1749507051210,-490.0,0.00019342,2]
[365165394,1749507051220,-490.0,0.00019342,2]
[365165395,1749507051229,-490.0,0.00019342,2]
[365165396,1749507051238,-490.0,0.00019342,2]
[365165397,1749507051251,-765.62,0.00019342,2]
[365165398,1749507051261,-513.81,0.00019342,2]
[365165399,1749507051270,-490.0,0.00019342,2]
[365165400,1749507051280,-1285.3,0.00019342,2]
[365165401,1749507051291,-628.27,0.00019342,2]
[365165402,1749507051301,-490.0,0.00019342,2]
[365165403,1749507051311,-2400.14,0.00019342,2]
[365165404,1749507051321,-2187.9,0.00019342,2]
[365165405,1749507051333,-1738.89,0.00019342,2]
[365165406,1749507051344,-490.0,0.00019342,2]
[365165407,1749507051354,-490.0,0.00019342,2]
[365165408,1749507051364,-1053.65,0.00019342,2]
[365165409,1749507051374,-490.0,0.00019342,2]
[365165410,1749507051383,-4195.3,0.00019342,2]
[365165411,1749507051393,-490.0,0.00019342,2]
[365165412,1749507051469,-558.88,0.00019342,2]
[365165413,1749507051479,-490.0,0.00019342,2]
[365165414,1749507051488,-464.01,0.00019342,2]
[365165415,1749507051497,-1025.56,0.00019342,2]
[365165416,1749507051507,-1398.14,0.00019342,2]
[365165417,1749507051516,-564.17,0.00019342,2]
[365165418,1749507051526,-1477.81,0.00019342,2]
[365165419,1749507051535,-2907.87,0.00019342,2]
[365165420,1749507051544,-490.0,0.00019342,2]
[365165421,1749507051554,-490.0,0.00019342,2]
[365165422,1749507051563,-490.0,0.00019342,2]
[365165423,1749507051573,-1104.2,0.00019342,2]
[365165424,1749507051583,-606.59,0.00019342,2]
[365165425,1749507051592,-490.0,0.00019342,2]
[365165426,1749507051602,-1506.92,0.00019342,2]
[365165427,1749507051611,-757.86,0.00019342,2]
[365165428,1749507051620,-602.88,0.00019342,2]
[365165429,1749507051630,-490.0,0.00019342,2]
[365165430,1749507051641,-490.0,0.00019342,2]
[365165431,1749507051651,-490.0,0.00019342,2]
[365165432,1749507051662,-490.0,0.00019342,2]
[365165433,1749507051671,-514.59,0.00019342,2]
[365165434,1749507051680,-490.0,0.00019342,2]
[365165435,1749507051690,-1733.9,0.00019342,2]
[365165436,1749507051700,-490.0,0.00019342,2]
[365165437,1749507051709,-490.0,0.00019342,2]
[365165438,1749507051719,-895.59,0.00019342,2]
[365165439,1749507051728,-651.56,0.00019342,2]
[365165440,1749507051737,-496.19,0.00019342,2]
[365165441,1749507051746,-798.77,0.00019342,2]
[365165442,1749507051755,-490.0,0.00019342,2]
[365165443,1749507051765,-490.0,0.00019342,2]
[365165444,1749507051775,-490.0,0.00019342,2]
[365165445,1749507051785,-987.65,0.00019342,2]
[365165446,1749507051795,-490.0,0.00019342,2]
[365165447,1749507051805,-548.87,0.00019342,2]
[365165448,1749507051815,-490.0,0.00019342,2]
[365165449,1749507051824,-490.0,0.00019342,2]
[365165450,1749507051834,-490.0,0.00019342,2]
[365165451,1749507051846,-1396.6,0.00019342,2]
[365165452,1749507051856,-490.0,0.00019342,2]
[365165453,1749507051866,-490.0,0.00019342,2]
[365165454,1749507051875,-490.0,0.00019342,2]
[365165455,1749507051884,-988.26,0.00019342,2]
[365165456,1749507051894,-1933.85,0.00019342,2]
[365165457,1749507051904,-490.0,0.00019342,2]
[365165458,1749507051913,-490.0,0.00019342,2]
[365165459,1749507051922,-1817.1,0.00019342,2]
[365165460,1749507051931,-619.05,0.00019342,2]
[365165461,1749507051940,-3078.2,0.00019342,2]
[365165462,1749507051950,-942.12,0.00019342,2]
[365165463,1749507051959,-490.0,0.00019342,2]
[365165464,1749507051970,-546.85,0.00019342,2]
[365165465,1749507051980,-1002.66,0.00019342,2]
[365165466,1749507051989,-675.27,0.00019342,2]
[365165467,1749507051999,-151.0,0.00019344,2]
[365165468,1749507052009,-1045.31738758,0.00019352,2]
[365165469,1749507052019,-202.02398717,0.00019367,2]
[365165470,1749507052028,-500.0,0.00019373,2]
[365165471,1749507052037,-500.0,0.00019373,2]
[365165472,1749507052047,-500.0,0.00019373,2]
[365165473,1749507052056,-500.0,0.00019373,2]
[365165474,1749507052066,-500.0,0.00019373,2]
[365165475,1749507052076,-745.6160821,0.00019381,2]
[365165476,1749507052086,-248.5,0.00019383,2]
[365165477,1749507052098,-500.0,0.00019383,2]
[365165478,1749507052107,-200.0,0.00019383,2]
[365165479,1749507052116,-899.799,0.00019386,2]
[365165480,1749507052126,-151.0,0.000194,2]
[365165481,1749507052135,-151.0,0.000194,2]
[365165482,1749507052145,-169.50026,0.000194,2]
[365165483,1749507052155,-169.50026,0.000194,2]
[365165484,1749507052164,-151.0,0.000194,2]
[365165485,1749507052173,-151.0,0.000194,2]
[365165486,1749507052182,-237.0,0.000194,2]
[365165487,1749507052191,-1500.0,0.000194,7]
[365165488,1749507052201,-752.0,0.000194,2]
[365165489,1749507052210,-768.0,0.000194,2]
[365165490,1749507052219,-745.6160821,0.00019424,2]
[365165491,1749507052229,-202.02398717,0.00019433,2]
[365165492,1749507052238,-1045.31738758,0.00019443,2]
[365165493,1749507052250,-745.6160821,0.00019467,2]
[365165494,1749507052259,-300.0,0.000195,7]
[365165495,1749507052269,-202.02398717,0.000195,2]
[365165496,1749507052279,-441.755571,0.00019502,2]
[365165497,1749507052288,-1154.55,0.00019505,2]
[365165498,1749507052297,-500.0,0.00019505,2]
[365165499,1749507052307,-500.0,0.00019505,2]
[365165500,1749507052317,-151.0,0.00019506,2]
[365165501,1749507052326,-169.50026,0.00019506,2]
[365165502,1749507052335,-169.50026,0.00019506,2]
[365165503,1749507052346,-151.0,0.00019506,2]
[365165504,1749507052355,-151.0,0.00019506,2]
[365165505,1749507052364,-274.445893,0.00019506,2]
[365165506,1749507052374,-230.138801,0.00019506,2]
[365165507,1749507052384,-510.21,0.00019506,2]
[365165508,1749507052393,-506.89,0.00019506,2]
[365165509,1749507052402,-490.0,0.00019506,2]
[365165510,1749507052411,-490.0,0.00019506,2]
[365165511,1749507052421,-490.0,0.00019506,2]
[365165512,1749507052430,-490.0,0.00019506,2]
[365165513,1749507052440,-490.0,0.00019506,2]
[365165514,1749507052449,-490.0,0.00019506,2]
[365165515,1749507052458,-490.0,0.00019506,2]
[365165516,1749507052468,-490.0,0.00019506,2]
[365165517,1749507052478,-490.0,0.00019506,2]
[365165518,1749507052487,-490.0,0.00019506,2]
[365165519,1749507052497,-490.0,0.00019506,2]
[365165520,1749507052506,-490.0,0.00019506,2]
[365165521,1749507052516,-490.0,0.00019506,2]
[365165522,1749507052525,-490.0,0.00019506,2]
[365165523,1749507052535,-490.0,0.00019506,2]
[365165524,1749507052544,-846.36,0.00019506,2]
[365165525,1749507052554,-490.0,0.00019506,2]
[365165526,1749507052563,-746.82,0.00019506,2]
[365165527,1749507052572,-500.48,0.00019506,2]
[365165528,1749507052582,-508.44,0.00019506,2]
[365165529,1749507052592,-490.0,0.00019506,2]
[365165530,1749507052601,-490.0,0.00019506,2]
[365165531,1749507052611,-490.0,0.00019506,2]
[365165532,1749507052621,-490.0,0.00019506,2]
[365165533,1749507052630,-490.0,0.00019506,2]
[365165534,1749507052640,-723.15,0.00019506,2]
[365165535,1749507052649,-490.0,0.00019506,2]
[365165536,1749507052659,-197.2495654,0.00019506,2]
[365165537,1749507052667,-490.0,0.00019506,2]
[365165538,1749507052677,-490.0,0.00019506,2]
[365165539,1749507052688,-490.0,0.00019506,2]
[365165540,1749507052697,-490.0,0.00019506,2]
[365165541,1749507052708,-490.0,0.00019506,2]
[365165542,1749507052719,-490.0,0.00019506,2]
[365165543,1749507052729,-490.0,0.00019506,2]
[365165544,1749507052739,-880.94,0.00019506,2]
[365165545,1749507052748,-490.0,0.00019506,2]
[365165546,1749507052759,-628.27,0.00019506,2]
[365165547,1749507052768,-559.06,0.00019506,2]
[365165548,1749507052778,-490.0,0.00019506,2]
[365165549,1749507052788,-490.0,0.00019506,2]
[365165550,1749507052797,-490.0,0.00019506,2]
[365165551,1749507052807,-490.0,0.00019506,2]
[365165552,1749507052816,-490.0,0.00019506,2]
[365165553,1749507052826,-575.55,0.00019506,2]
[365165554,1749507052835,-490.0,0.00019506,2]
[365165555,1749507052845,-669.35,0.00019506,2]
[365165556,1749507052854,-490.0,0.00019506,2]
[365165557,1749507052864,-643.38,0.00019506,2]
[365165558,1749507052874,-403.56633931,0.00019506,2]
[365165559,1749507052883,-490.0,0.00019506,2]
[365165560,1749507052893,-682.85,0.00019506,2]
[365165561,1749507052903,-189.35774265,0.00019506,2]
[365165562,1749507052912,-1065.97,0.00019506,2]
[365165563,1749507052922,-490.0,0.00019506,2]
[365165564,1749507052931,-490.0,0.00019506,2]
[365165565,1749507052940,-490.0,0.00019506,2]
[365165566,1749507052950,-490.0,0.00019506,2]
[365165567,1749507052960,-490.0,0.00019506,2]
[365165568,1749507052969,-490.0,0.00019506,2]
[365165569,1749507052979,-1065.55,0.00019506,2]
[365165570,1749507052989,-490.0,0.00019506,2]
[365165571,1749507053000,-490.0,0.00019506,2]
[365165572,1749507053010,-503.4,0.00019506,2]
[365165573,1749507053025,-851.4,0.00019506,2]
[365165574,1749507053035,-490.0,0.00019506,2]
[365165575,1749507053044,-803.18,0.00019506,2]
[365165576,1749507053054,-530.24,0.00019506,2]
[365165577,1749507053063,-490.0,0.00019506,2]
[365165578,1749507053073,-490.0,0.00019506,2]
[365165579,1749507053083,-490.0,0.00019506,2]
[365165580,1749507053093,-490.0,0.00019506,2]
[365165581,1749507053103,-1150.13,0.00019506,2]
[365165582,1749507053113,-490.0,0.00019506,2]
[365165583,1749507053122,-853.07,0.00019506,2]
[365165584,1749507053131,-490.0,0.00019506,2]
[365165585,1749507053141,-490.0,0.00019506,2]
[365165586,1749507053151,-699.7,0.00019506,2]
[365165587,1749507053160,-490.0,0.00019506,2]
[365165588,1749507053170,-819.46,0.00019506,2]
[365165589,1749507053180,-490.0,0.00019506,2]
[365165590,1749507053191,-490.0,0.00019506,2]
[365165591,1749507053202,-490.0,0.00019506,2]
[365165592,1749507053212,-490.0,0.00019506,2]
[365165593,1749507053221,-490.0,0.00019506,2]
[365165594,1749507053231,-701.94,0.00019506,2]
[365165595,1749507053241,-854.05,0.00019506,2]
[365165596,1749507053253,-490.0,0.00019506,2]
[365165597,1749507053263,-709.31,0.00019506,2]
[365165598,1749507053273,-490.0,0.00019506,2]
[365165599,1749507053283,-490.0,0.00019506,2]
[365165600,1749507053294,-490.0,0.00019506,2]
[365165601,1749507053303,-490.0,0.00019506,2]
[365165602,1749507053313,-1420.54,0.00019506,2]
[365165603,1749507053323,-490.0,0.00019506,2]
[365165604,1749507053334,-973.4,0.00019506,2]
[365165605,1749507053344,-490.0,0.00019506,2]
[365165606,1749507053354,-490.0,0.00019506,2]
[365165607,1749507053363,-490.0,0.00019506,2]
[365165608,1749507053373,-490.0,0.00019506,2]
[365165609,1749507053383,-490.0,0.00019506,2]
[365165610,1749507053392,-490.0,0.00019506,2]
[365165611,1749507053402,-490.0,0.00019506,2]
[365165612,1749507053412,-564.81058599,0.00019506,2]
[365165613,1749507053422,-490.0,0.00019506,2]
[365165614,1749507053431,-508.53,0.00019506,2]
[365165615,1749507053441,-490.0,0.00019506,2]
[365165616,1749507053451,-499.64,0.00019506,2]
[365165617,1749507053461,-856.32,0.00019506,2]
[365165618,1749507053471,-532.35,0.00019506,2]
[365165619,1749507053480,-490.0,0.00019506,2]
[365165620,1749507053490,-1004.19,0.00019506,2]
[365165621,1749507053499,-490.0,0.00019506,2]
[365165622,1749507053511,-490.0,0.00019506,2]
[365165623,1749507053520,-490.0,0.00019506,2]
[365165624,1749507053530,-1058.91,0.00019506,2]
[365165625,1749507053539,-490.0,0.00019506,2]
[365165626,1749507053548,-535.1,0.00019506,2]
[365165627,1749507053558,-634.22,0.00019506,2]
[365165628,1749507053567,-490.0,0.00019506,2]
[365165629,1749507053577,-490.0,0.00019506,2]
[365165630,1749507053587,-210.21668375,0.00019506,2]
[365165631,1749507053598,-490.0,0.00019506,2]
[365165632,1749507053608,-490.0,0.00019506,2]
[365165633,1749507053617,-492.34,0.00019506,2]
[365165634,1749507053627,-490.0,0.00019506,2]
[365165635,1749507053636,-490.0,0.00019506,2]
[365165636,1749507053645,-513.15,0.00019506,2]
[365165637,1749507053655,-490.0,0.00019506,2]
[365165638,1749507053664,-565.17,0.00019506,2]
[365165639,1749507053674,-490.0,0.00019506,2]
[365165640,1749507053683,-490.0,0.00019506,2]
[365165641,1749507053693,-490.0,0.00019506,2]
[365165642,1749507053702,-490.0,0.00019506,2]
[365165643,1749507053712,-1007.95,0.00019506,2]
[365165644,1749507053721,-490.0,0.00019506,2]
[365165645,1749507053730,-620.03,0.00019506,2]
[365165646,1749507053739,-490.0,0.00019506,2]
[365165647,1749507053749,-1164.18,0.00019506,2]
[365165648,1749507053758,-490.0,0.00019506,2]
[365165649,1749507053768,-634.76,0.00019506,2]
[365165650,1749507053778,-490.0,0.00019506,2]
[365165651,1749507053788,-490.0,0.00019506,2]
[365165652,1749507053797,-490.0,0.00019506,2]
[365165653,1749507053807,-490.0,0.00019506,2]
[365165654,1749507053816,-490.0,0.00019506,2]
[365165655,1749507053825,-542.72,0.00019506,2]
[365165656,1749507053835,-155.4060899,0.00019506,2]
[365165657,1749507053845,-551.16,0.00019506,2]
[365165658,1749507053854,-926.98,0.00019506,2]
[365165659,1749507053863,-490.0,0.00019506,2]
[365165660,1749507053873,-490.0,0.00019506,2]
[365165661,1749507053882,-490.0,0.00019506,2]
[365165662,1749507053891,-524.82,0.00019506,2]
[365165663,1749507053900,-490.0,0.00019506,2]
[365165664,1749507053910,-490.0,0.00019506,2]
[365165665,1749507053919,-1358.3,0.00019506,2]
[365165666,1749507053928,-582.72,0.00019506,2]
[365165667,1749507053938,-490.0,0.00019506,2]
[365165668,1749507053947,-1000.91,0.00019506,2]
[365165669,1749507053957,-1005.84,0.00019506,2]
[365165670,1749507053966,-490.0,0.00019506,2]
[365165671,1749507053975,-490.0,0.00019506,2]
[365165672,1749507053985,-799.5,0.00019506,2]
[365165673,1749507053995,-625.68,0.00019506,2]
[365165674,1749507054004,-490.0,0.00019506,2]
[365165675,1749507054014,-358.07018617,0.00019506,2]
[365165676,1749507054023,-490.0,0.00019506,2]
[365165677,1749507054032,-490.0,0.00019506,2]
[365165678,1749507054041,-725.72,0.00019506,2]
[365165679,1749507054051,-171.45494447,0.00019506,2]
[365165680,1749507054061,-490.0,0.00019506,2]
[365165681,1749507054071,-831.35,0.00019506,2]
[365165682,1749507054081,-490.0,0.00019506,2]
[365165683,1749507054091,-490.0,0.00019506,2]
[365165684,1749507054100,-663.1,0.00019506,2]
[365165685,1749507054110,-490.0,0.00019506,2]
[365165686,1749507054120,-490.0,0.00019506,2]
[365165687,1749507054130,-17725.6,0.00019506,2]
[365165688,1749507054139,-735.23,0.00019506,2]
[365165689,1749507054149,-490.0,0.00019506,2]
[365165690,1749507054158,-490.0,0.00019506,2]
[365165691,1749507054168,-1098.27,0.00019506,2]
[365165692,1749507054177,-490.0,0.00019506,2]
[365165693,1749507054187,-490.0,0.00019506,2]
[365165694,1749507054197,-1889.3,0.00019506,2]
[365165695,1749507054206,-490.0,0.00019506,2]
[365165696,1749507054216,-893.16,0.00019506,2]
[365165697,1749507054225,-490.0,0.00019506,2]